[Event "Titled Tuesday Blitz July 6 2021"]
[White "Riazantsev, Alexander"]
[Black "Vidit, Santosh Gujrathi"]
[WhiteFideId "4125029"]
[BlackFideId "5029465"]
[WhiteElo "2497"]
[BlackElo "2735"]
[Result "0-1"]
[Round "04"]
[TimeControl "180+1"]
[Date "2021.07.06"]
[WhiteClock "0:00:03"]
[BlackClock "0:00:05"]

1. d4 {[%clk 0:03:00]}  Nf6 {[%clk 0:02:59]} 2. c4 {[%clk 0:03:01]}  e6 {[%clk 0:03:00]} 3. Nf3 {[%clk 0:03:00]}  d5 {[%clk 0:03:00]} 4. Qc2 {[%clk 0:03:00]}  a6 {[%clk 0:02:44]} 5. Bg5 {[%clk 0:02:58]}  Nbd7 {[%clk 0:02:35]} 6. e3 {[%clk 0:02:54]}  h6 {[%clk 0:02:30]} 7. Bh4 {[%clk 0:02:54]}  dxc4 {[%clk 0:02:26]} 8. Bxc4 {[%clk 0:02:53]}  b5 {[%clk 0:02:25]} 9. Bd3 {[%clk 0:02:53]}  c5 {[%clk 0:02:20]} 10. a4 {[%clk 0:02:52]}  b4 {[%clk 0:02:15]} 11. O-O {[%clk 0:02:46]}  Bb7 {[%clk 0:02:15]} 12. Qe2 {[%clk 0:02:42]}  cxd4 {[%clk 0:01:57]} 13. Nxd4 {[%clk 0:02:37]}  Nc5 {[%clk 0:01:47]} 14. Bc4 {[%clk 0:02:31]}  Be7 {[%clk 0:01:44]} 15. Nd2 {[%clk 0:02:30]}  O-O {[%clk 0:01:44]} 16. a5 {[%clk 0:02:15]}  Nd5 {[%clk 0:01:32]} 17. Bg3 {[%clk 0:02:02]}  Bf6 {[%clk 0:01:27]} 18. Rfd1 {[%clk 0:01:58]}  Qe7 {[%clk 0:01:15]} 19. Rab1 {[%clk 0:01:22]}  Rfd8 {[%clk 0:01:14]} 20. N4b3 {[%clk 0:01:22]}  Na4 {[%clk 0:00:43]} 21. e4 {[%clk 0:00:51]}  Ndc3 {[%clk 0:00:23]} 22. bxc3 {[%clk 0:00:51]}  Nxc3 {[%clk 0:00:23]} 23. Qe1 {[%clk 0:00:48]}  Nxb1 {[%clk 0:00:19]} 24. Rxb1 {[%clk 0:00:47]}  Bc3 {[%clk 0:00:19]} 25. Qe2 {[%clk 0:00:48]}  Rac8 {[%clk 0:00:17]} 26. Nf3 {[%clk 0:00:39]}  Qd7 {[%clk 0:00:13]} 27. Bxa6 {[%clk 0:00:34]}  Bxa6 {[%clk 0:00:12]} 28. Qxa6 {[%clk 0:00:35]}  Qa4 {[%clk 0:00:13]} 29. Qe2 {[%clk 0:00:30]}  Bf6 {[%clk 0:00:13]} 30. h4 {[%clk 0:00:21]}  Rc3 {[%clk 0:00:12]} 31. e5 {[%clk 0:00:14]}  Be7 {[%clk 0:00:12]} 32. Nbd4 {[%clk 0:00:14]}  Qxa5 {[%clk 0:00:10]} 33. Qe4 {[%clk 0:00:14]}  Qd5 {[%clk 0:00:08]} 34. Qxd5 {[%clk 0:00:13]}  Rxd5 {[%clk 0:00:09]} 35. Bf4 {[%clk 0:00:10]}  Bc5 {[%clk 0:00:06]} 36. Be3 {[%clk 0:00:10]}  Rd3 {[%clk 0:00:05]} 37. Nc2 {[%clk 0:00:03]}  Rd1+ {[%clk 0:00:05]} 38. Rxd1 {[%clk 0:00:03]}  Rxd1+ {[%clk 0:00:06]} 39. Kh2 {[%clk 0:00:03]}  b3 {[%clk 0:00:04]} 40. Bxc5 {[%clk 0:00:03]}  bxc2 {[%clk 0:00:04]} 41. Be3 {[%clk 0:00:03]}  c1=Q {[%clk 0:00:03]} 42. Bxc1 {[%clk 0:00:03]}  Rxc1 {[%clk 0:00:03]} 43. h5 {[%clk 0:00:04]}  Rc4 {[%clk 0:00:03]} 44. Kh3 {[%clk 0:00:03]}  Re4 {[%clk 0:00:04]} 45. g4 {[%clk 0:00:03]}  Kf8 {[%clk 0:00:04]} 46. Kg3 {[%clk 0:00:04]}  Ke7 {[%clk 0:00:04]} 47. Kh3 {[%clk 0:00:03]}  Kd7 {[%clk 0:00:05]} 48. Kg3 {[%clk 0:00:04]}  Kc6 {[%clk 0:00:05]} 49. g5 {[%clk 0:00:04]}  Kd5 {[%clk 0:00:05]} 50. g6 {[%clk 0:00:04]}  fxg6 {[%clk 0:00:05]} 51. hxg6 {[%clk 0:00:05]}  Ra4 {[%clk 0:00:04]} 52. Kh3 {[%clk 0:00:05]}  Ke4 {[%clk 0:00:04]} 53. Kg4 {[%clk 0:00:05]}  Ra3 {[%clk 0:00:04]} 54. Nd2+ {[%clk 0:00:04]}  Kd3 {[%clk 0:00:04]} 55. Nf1 {[%clk 0:00:03]}  Kd4 {[%clk 0:00:03]} 56. f4 {[%clk 0:00:03]}  Ke4 {[%clk 0:00:03]} 57. Nd2+ {[%clk 0:00:03]}  Kd5 {[%clk 0:00:03]} 58. Nf3 {[%clk 0:00:02]}  Ra4 {[%clk 0:00:04]} 59. Nh4 {[%clk 0:00:02]}  Rb4 {[%clk 0:00:03]} 60. Kf3 {[%clk 0:00:02]}  Rb3+ {[%clk 0:00:03]} 61. Kg4 {[%clk 0:00:02]}  Ke4 {[%clk 0:00:03]} 62. f5 {[%clk 0:00:03]}  Kxe5 {[%clk 0:00:03]} 63. fxe6 {[%clk 0:00:02]}  Kxe6 {[%clk 0:00:04]} 64. Ng2 {[%clk 0:00:02]}  Kf6 {[%clk 0:00:04]} 65. Kh5 {[%clk 0:00:02]}  Rb5+ {[%clk 0:00:04]} 66. Kg4 {[%clk 0:00:02]}  Rg5+ {[%clk 0:00:04]} 67. Kf3 {[%clk 0:00:02]}  Rxg2 {[%clk 0:00:04]} 68. Kxg2 {[%clk 0:00:03]}  Kxg6 {[%clk 0:00:05]} 0-1


[Site "https://www.chess.com"]

[Event "Titled Tuesday Blitz July 6 2021"]
[White "Sawlin, Leonid"]
[Black "Dobrov, Vladimir"]
[WhiteFideId "4689542"]
[BlackFideId "4136594"]
[WhiteElo "2412"]
[BlackElo "2614"]
[Result "1-0"]
[Round "04"]
[TimeControl "180+1"]
[Date "2021.07.06"]
[WhiteClock "0:00:07"]
[BlackClock "0:00:15"]

1. e4 {[%clk 0:03:00]}  c5 {[%clk 0:02:56]} 2. Nf3 {[%clk 0:03:00]}  Nc6 {[%clk 0:02:55]} 3. d4 {[%clk 0:03:01]}  cxd4 {[%clk 0:02:56]} 4. Nxd4 {[%clk 0:03:02]}  Qb6 {[%clk 0:02:56]} 5. Nb3 {[%clk 0:03:01]}  Nf6 {[%clk 0:02:56]} 6. Nc3 {[%clk 0:03:02]}  e6 {[%clk 0:02:56]} 7. Bd3 {[%clk 0:03:02]}  a6 {[%clk 0:02:56]} 8. O-O {[%clk 0:03:02]}  h5 {[%clk 0:02:56]} 9. Qe2 {[%clk 0:02:50]}  Qc7 {[%clk 0:02:51]} 10. a4 {[%clk 0:02:29]}  b6 {[%clk 0:02:49]} 11. f4 {[%clk 0:02:28]}  d6 {[%clk 0:02:45]} 12. Be3 {[%clk 0:02:28]}  Be7 {[%clk 0:02:44]} 13. h3 {[%clk 0:02:27]}  h4 {[%clk 0:02:43]} 14. Qf2 {[%clk 0:02:27]}  Rb8 {[%clk 0:02:43]} 15. Nd2 {[%clk 0:02:21]}  Na5 {[%clk 0:02:40]} 16. Nf3 {[%clk 0:02:09]}  Nc4 {[%clk 0:02:13]} 17. Bxc4 {[%clk 0:02:04]}  Qxc4 {[%clk 0:02:14]} 18. e5 {[%clk 0:02:05]}  Ne4 {[%clk 0:01:42]} 19. Nxe4 {[%clk 0:02:05]}  Qxe4 {[%clk 0:01:43]} 20. exd6 {[%clk 0:00:56]}  Bxd6 {[%clk 0:01:41]} 21. Rad1 {[%clk 0:00:57]}  Bxf4 {[%clk 0:01:25]} 22. Bxf4 {[%clk 0:00:43]}  Qxf4 {[%clk 0:01:24]} 23. Rd4 {[%clk 0:00:44]}  Qf6 {[%clk 0:01:11]} 24. Qd2 {[%clk 0:00:38]}  Qe7 {[%clk 0:01:01]} 25. Ne5 {[%clk 0:00:33]}  Qc7 {[%clk 0:00:33]} 26. Nxf7 {[%clk 0:00:14]}  O-O {[%clk 0:00:32]} 27. Nh6+ {[%clk 0:00:15]}  gxh6 {[%clk 0:00:24]} 28. Rg4+ {[%clk 0:00:16]}  Kh7 {[%clk 0:00:23]} 29. Rxf8 {[%clk 0:00:16]}  Qc5+ {[%clk 0:00:23]} 30. Kh1 {[%clk 0:00:16]}  Qxf8 {[%clk 0:00:21]} 31. Qd3+ {[%clk 0:00:16]}  Qf5 {[%clk 0:00:21]} 32. Qd8 {[%clk 0:00:14]}  Qf1+ {[%clk 0:00:11]} 33. Kh2 {[%clk 0:00:14]}  Qf7 {[%clk 0:00:12]} 34. Rc4 {[%clk 0:00:14]}  Rb7 {[%clk 0:00:03]} 35. Qd3+ {[%clk 0:00:08]}  Qf5 {[%clk 0:00:03]} 36. Qxf5+ {[%clk 0:00:05]}  exf5 {[%clk 0:00:04]} 37. Rxc8 {[%clk 0:00:05]}  b5 {[%clk 0:00:04]} 38. a5 {[%clk 0:00:05]}  Kg6 {[%clk 0:00:04]} 39. Rc6+ {[%clk 0:00:04]}  Kg5 {[%clk 0:00:05]} 40. Rxa6 {[%clk 0:00:05]}  Rc7 {[%clk 0:00:05]} 41. Rb6 {[%clk 0:00:05]}  Rxc2 {[%clk 0:00:05]} 42. Rxb5 {[%clk 0:00:06]}  Kf4 {[%clk 0:00:06]} 43. Kg1 {[%clk 0:00:05]}  Rc1+ {[%clk 0:00:06]} 44. Kf2 {[%clk 0:00:05]}  Rc2+ {[%clk 0:00:07]} 45. Kf1 {[%clk 0:00:05]}  Ke3 {[%clk 0:00:07]} 46. Rb3+ {[%clk 0:00:04]}  Ke4 {[%clk 0:00:06]} 47. a6 {[%clk 0:00:04]}  Rc1+ {[%clk 0:00:07]} 48. Ke2 {[%clk 0:00:04]}  Rc2+ {[%clk 0:00:08]} 49. Kd1 {[%clk 0:00:05]}  Rc6 {[%clk 0:00:06]} 50. Ra3 {[%clk 0:00:05]}  Rc8 {[%clk 0:00:06]} 51. a7 {[%clk 0:00:06]}  Ra8 {[%clk 0:00:07]} 52. b4 {[%clk 0:00:06]}  Kd5 {[%clk 0:00:07]} 53. Kc2 {[%clk 0:00:04]}  Kc4 {[%clk 0:00:08]} 54. Ra4 {[%clk 0:00:04]}  f4 {[%clk 0:00:07]} 55. Kd2 {[%clk 0:00:02]}  h5 {[%clk 0:00:08]} 56. Ke2 {[%clk 0:00:02]}  Kb3 {[%clk 0:00:08]} 57. Ra6 {[%clk 0:00:02]}  Kxb4 {[%clk 0:00:09]} 58. Kf3 {[%clk 0:00:03]}  Kb5 {[%clk 0:00:09]} 59. Ra1 {[%clk 0:00:03]}  Kb6 {[%clk 0:00:09]} 60. Kxf4 {[%clk 0:00:04]}  Kb7 {[%clk 0:00:10]} 61. Kg5 {[%clk 0:00:04]}  Rg8+ {[%clk 0:00:10]} 62. Kxh5 {[%clk 0:00:03]}  Ka8 {[%clk 0:00:11]} 63. Ra2 {[%clk 0:00:03]}  Rh8+ {[%clk 0:00:11]} 64. Kg5 {[%clk 0:00:03]}  Rh7 {[%clk 0:00:12]} 65. Ra4 {[%clk 0:00:01]}  Rg7+ {[%clk 0:00:12]} 66. Kxh4 {[%clk 0:00:01]}  Rxg2 {[%clk 0:00:13]} 67. Kh5 {[%clk 0:00:01]}  Rg1 {[%clk 0:00:13]} 68. h4 {[%clk 0:00:02]}  Rg8 {[%clk 0:00:13]} 69. Kh6 {[%clk 0:00:03]}  Rh8+ {[%clk 0:00:13]} 70. Kg6 {[%clk 0:00:04]}  Rg8+ {[%clk 0:00:14]} 71. Kf7 {[%clk 0:00:04]}  Rg1 {[%clk 0:00:14]} 72. h5 {[%clk 0:00:04]}  Rf1+ {[%clk 0:00:15]} 73. Kg6 {[%clk 0:00:05]}  Rg1+ {[%clk 0:00:15]} 74. Kf6 {[%clk 0:00:05]}  Rf1+ {[%clk 0:00:16]} 75. Kg5 {[%clk 0:00:06]}  Rg1+ {[%clk 0:00:14]} 76. Rg4 {[%clk 0:00:06]}  Rc1 {[%clk 0:00:15]} 77. h6 {[%clk 0:00:07]}  Kxa7 {[%clk 0:00:15]} 78. h7 {[%clk 0:00:07]}  Rc8 {[%clk 0:00:15]} 79. Kh6 {[%clk 0:00:07]} 1-0


[Site "https://www.chess.com"]

[Event "Titled Tuesday Blitz July 6 2021"]
[White "Spata, German"]
[Black "Vykouk, Jan"]
[WhiteFideId "113026"]
[BlackFideId "349658"]
[WhiteElo "2238"]
[BlackElo "2387"]
[Result "0-1"]
[Round "04"]
[TimeControl "180+1"]
[Date "2021.07.06"]
[WhiteClock "0:00:13"]
[BlackClock "0:01:18"]

1. Nf3 {[%clk 0:03:00]}  Nf6 {[%clk 0:02:59]} 2. c4 {[%clk 0:02:58]}  g6 {[%clk 0:02:59]} 3. b3 {[%clk 0:02:58]}  Bg7 {[%clk 0:03:00]} 4. Bb2 {[%clk 0:02:57]}  O-O {[%clk 0:03:01]} 5. g3 {[%clk 0:02:56]}  d6 {[%clk 0:03:01]} 6. d4 {[%clk 0:02:56]}  a5 {[%clk 0:03:00]} 7. Nc3 {[%clk 0:02:54]}  Bd7 {[%clk 0:02:57]} 8. Bg2 {[%clk 0:02:52]}  c6 {[%clk 0:02:57]} 9. O-O {[%clk 0:02:50]}  Na6 {[%clk 0:02:49]} 10. Qd2 {[%clk 0:02:47]}  Bg4 {[%clk 0:02:43]} 11. h3 {[%clk 0:02:45]}  Bxf3 {[%clk 0:02:43]} 12. Bxf3 {[%clk 0:02:46]}  e5 {[%clk 0:02:42]} 13. e3 {[%clk 0:02:46]}  Qd7 {[%clk 0:02:39]} 14. Bg2 {[%clk 0:02:46]}  Rad8 {[%clk 0:02:36]} 15. Rad1 {[%clk 0:02:46]}  exd4 {[%clk 0:02:34]} 16. exd4 {[%clk 0:02:30]}  d5 {[%clk 0:02:34]} 17. cxd5 {[%clk 0:02:29]}  cxd5 {[%clk 0:02:34]} 18. Na4 {[%clk 0:02:27]}  Ne4 {[%clk 0:02:26]} 19. Qxa5 {[%clk 0:02:23]}  Rfe8 {[%clk 0:02:20]} 20. Nb6 {[%clk 0:01:56]}  Qf5 {[%clk 0:02:04]} 21. Qb5 {[%clk 0:01:29]}  h5 {[%clk 0:01:54]} 22. Qd3 {[%clk 0:01:28]}  Qe6 {[%clk 0:01:49]} 23. Na4 {[%clk 0:01:25]}  Nb4 {[%clk 0:01:48]} 24. Qb1 {[%clk 0:01:24]}  Bh6 {[%clk 0:01:45]} 25. Nc5 {[%clk 0:01:20]}  Qe7 {[%clk 0:01:32]} 26. a3 {[%clk 0:01:18]}  Nc6 {[%clk 0:01:29]} 27. Nxe4 {[%clk 0:01:17]}  dxe4 {[%clk 0:01:29]} 28. Rfe1 {[%clk 0:01:18]}  f5 {[%clk 0:01:28]} 29. Bf1 {[%clk 0:01:10]}  Bg7 {[%clk 0:01:25]} 30. Bc4+ {[%clk 0:01:10]}  Kh7 {[%clk 0:01:25]} 31. d5 {[%clk 0:01:08]}  Ne5 {[%clk 0:01:19]} 32. Bxe5 {[%clk 0:01:08]}  Bxe5 {[%clk 0:01:19]} 33. d6 {[%clk 0:01:05]}  Rxd6 {[%clk 0:01:18]} 34. Rxd6 {[%clk 0:01:05]}  Bxd6 {[%clk 0:01:18]} 35. a4 {[%clk 0:01:04]}  h4 {[%clk 0:01:18]} 36. Kg2 {[%clk 0:00:46]}  hxg3 {[%clk 0:01:17]} 37. fxg3 {[%clk 0:00:46]}  Qe5 {[%clk 0:01:17]} 38. Re3 {[%clk 0:00:35]}  f4 {[%clk 0:01:18]} 39. gxf4 {[%clk 0:00:32]}  Qxf4 {[%clk 0:01:19]} 40. Qg1 {[%clk 0:00:13]}  Bc5 {[%clk 0:01:18]} 0-1


[Site "https://www.chess.com"]

[Event "Titled Tuesday Blitz July 6 2021"]
[White "Svane, Rasmus"]
[Black "Zemach, Roee"]
[WhiteFideId "4657101"]
[BlackFideId "2818531"]
[WhiteElo "2669"]
[BlackElo "2131"]
[Result "1-0"]
[Round "04"]
[TimeControl "180+1"]
[Date "2021.07.06"]
[WhiteClock "0:00:59"]
[BlackClock "0:00:23"]

1. Nf3 {[%clk 0:03:00]}  Nf6 {[%clk 0:03:00]} 2. g3 {[%clk 0:03:01]}  d5 {[%clk 0:03:00]} 3. Bg2 {[%clk 0:03:01]}  e6 {[%clk 0:03:01]} 4. O-O {[%clk 0:03:01]}  Be7 {[%clk 0:03:01]} 5. c4 {[%clk 0:03:02]}  O-O {[%clk 0:03:02]} 6. b3 {[%clk 0:03:02]}  c5 {[%clk 0:03:02]} 7. cxd5 {[%clk 0:03:02]}  Nxd5 {[%clk 0:03:03]} 8. Nc3 {[%clk 0:03:02]}  Nc6 {[%clk 0:03:03]} 9. Bb2 {[%clk 0:03:02]}  Bf6 {[%clk 0:03:02]} 10. Qc2 {[%clk 0:03:02]}  b6 {[%clk 0:02:59]} 11. Nxd5 {[%clk 0:02:44]}  exd5 {[%clk 0:02:56]} 12. d4 {[%clk 0:02:37]}  Nxd4 {[%clk 0:02:51]} 13. Nxd4 {[%clk 0:02:37]}  Bxd4 {[%clk 0:02:38]} 14. Bxd4 {[%clk 0:02:37]}  cxd4 {[%clk 0:02:39]} 15. Rfd1 {[%clk 0:02:37]}  Be6 {[%clk 0:02:39]} 16. Rxd4 {[%clk 0:02:37]}  Rc8 {[%clk 0:02:35]} 17. Qd2 {[%clk 0:02:37]}  Qf6 {[%clk 0:02:35]} 18. Rd1 {[%clk 0:02:35]}  g6 {[%clk 0:02:30]} 19. Bxd5 {[%clk 0:02:34]}  Bxd5 {[%clk 0:02:27]} 20. Rxd5 {[%clk 0:02:35]}  Rfe8 {[%clk 0:02:27]} 21. Rd7 {[%clk 0:02:14]}  Re7 {[%clk 0:02:18]} 22. Rd6 {[%clk 0:01:57]}  Qe5 {[%clk 0:02:14]} 23. e3 {[%clk 0:01:52]}  Kg7 {[%clk 0:02:13]} 24. Qd4 {[%clk 0:01:51]}  Qxd4 {[%clk 0:02:12]} 25. R1xd4 {[%clk 0:01:52]}  Rc2 {[%clk 0:02:10]} 26. Rd2 {[%clk 0:01:44]}  Rec7 {[%clk 0:02:10]} 27. Kg2 {[%clk 0:01:45]}  Rxd2 {[%clk 0:02:00]} 28. Rxd2 {[%clk 0:01:46]}  Kf6 {[%clk 0:02:00]} 29. Kf3 {[%clk 0:01:38]}  Re7 {[%clk 0:01:57]} 30. g4 {[%clk 0:01:37]}  Ke5 {[%clk 0:01:55]} 31. h4 {[%clk 0:01:33]}  Rc7 {[%clk 0:01:50]} 32. Ke2 {[%clk 0:01:33]}  f5 {[%clk 0:01:24]} 33. gxf5 {[%clk 0:01:32]}  Kxf5 {[%clk 0:01:24]} 34. Kf3 {[%clk 0:01:31]}  Re7 {[%clk 0:01:23]} 35. Rd5+ {[%clk 0:01:29]}  Ke6 {[%clk 0:01:23]} 36. Rd4 {[%clk 0:01:27]}  Rc7 {[%clk 0:01:20]} 37. Rc4 {[%clk 0:01:25]}  Rd7 {[%clk 0:01:13]} 38. Ke2 {[%clk 0:01:25]}  Kf5 {[%clk 0:01:12]} 39. f3 {[%clk 0:01:15]}  Ke5 {[%clk 0:01:12]} 40. f4+ {[%clk 0:01:06]}  Kf5 {[%clk 0:01:11]} 41. Kf3 {[%clk 0:01:05]}  Rd2 {[%clk 0:01:06]} 42. Rc6 {[%clk 0:01:05]}  Rd3 {[%clk 0:01:00]} 43. Rc7 {[%clk 0:01:02]}  Rd1 {[%clk 0:00:31]} 44. Rf7+ {[%clk 0:01:01]}  Ke6 {[%clk 0:00:31]} 45. Rxh7 {[%clk 0:01:01]}  Rf1+ {[%clk 0:00:29]} 46. Ke4 {[%clk 0:01:01]}  a6 {[%clk 0:00:23]} 47. Rb7 {[%clk 0:00:59]} 1-0


[Site "https://www.chess.com"]

[Event "Titled Tuesday Blitz July 6 2021"]
[White "Tanenbaum, Zachary"]
[Black "Kapitanchuk, Tomas"]
[WhiteFideId "2060850"]
[BlackFideId "135046"]
[WhiteElo "2165"]
[BlackElo "1955"]
[Result "0-1"]
[Round "04"]
[TimeControl "180+1"]
[Date "2021.07.06"]
[WhiteClock "0:00:05"]
[BlackClock "0:01:05"]

1. e4 {[%clk 0:02:59]}  c5 {[%clk 0:03:00]} 2. Nf3 {[%clk 0:03:00]}  e6 {[%clk 0:03:00]} 3. d4 {[%clk 0:03:00]}  cxd4 {[%clk 0:03:01]} 4. Nxd4 {[%clk 0:03:01]}  Nc6 {[%clk 0:03:02]} 5. Nc3 {[%clk 0:03:01]}  Qc7 {[%clk 0:03:03]} 6. g3 {[%clk 0:03:01]}  a6 {[%clk 0:03:03]} 7. Bg2 {[%clk 0:03:01]}  Nf6 {[%clk 0:03:03]} 8. O-O {[%clk 0:03:01]}  Nxd4 {[%clk 0:03:04]} 9. Qxd4 {[%clk 0:03:01]}  Bc5 {[%clk 0:03:04]} 10. Bf4 {[%clk 0:03:01]}  d6 {[%clk 0:03:05]} 11. Qd2 {[%clk 0:03:00]}  h6 {[%clk 0:03:06]} 12. Rad1 {[%clk 0:02:57]}  e5 {[%clk 0:03:06]} 13. Be3 {[%clk 0:02:53]}  Bxe3 {[%clk 0:03:05]} 14. fxe3 {[%clk 0:02:53]}  Be6 {[%clk 0:03:05]} 15. Qxd6 {[%clk 0:02:44]}  Rc8 {[%clk 0:03:05]} 16. Qxc7 {[%clk 0:02:31]}  Rxc7 {[%clk 0:03:06]} 17. Rd2 {[%clk 0:02:29]}  Ke7 {[%clk 0:02:59]} 18. Nd5+ {[%clk 0:02:28]}  Bxd5 {[%clk 0:02:56]} 19. exd5 {[%clk 0:02:29]}  Kd6 {[%clk 0:02:54]} 20. c3 {[%clk 0:02:22]}  b5 {[%clk 0:02:51]} 21. a4 {[%clk 0:02:15]}  bxa4 {[%clk 0:02:49]} 22. Ra1 {[%clk 0:02:15]}  Rc4 {[%clk 0:02:40]} 23. Bf1 {[%clk 0:02:14]}  Re4 {[%clk 0:02:40]} 24. Kf2 {[%clk 0:02:08]}  Ng4+ {[%clk 0:02:36]} 25. Kf3 {[%clk 0:02:08]}  f5 {[%clk 0:02:34]} 26. Re1 {[%clk 0:02:01]}  a3 {[%clk 0:02:00]} 27. c4 {[%clk 0:01:56]}  a2 {[%clk 0:01:39]} 28. Rdd1 {[%clk 0:01:17]}  Rb8 {[%clk 0:01:33]} 29. Bd3 {[%clk 0:00:58]}  Rxb2 {[%clk 0:01:31]} 30. c5+ {[%clk 0:00:44]}  Kxc5 {[%clk 0:01:25]} 31. Rc1+ {[%clk 0:00:44]}  Kd6 {[%clk 0:01:15]} 32. Be2 {[%clk 0:00:08]}  Rxe3+ {[%clk 0:01:13]} 33. Kg2 {[%clk 0:00:08]}  Rexe2+ {[%clk 0:01:13]} 34. Rxe2 {[%clk 0:00:07]}  Rxe2+ {[%clk 0:01:14]} 35. Kg1 {[%clk 0:00:07]}  Rxh2 {[%clk 0:01:13]} 36. Rc6+ {[%clk 0:00:06]}  Kxd5 {[%clk 0:01:13]} 37. Rxa6 {[%clk 0:00:07]}  Rb2 {[%clk 0:01:10]} 38. Ra3 {[%clk 0:00:05]}  Rb1+ {[%clk 0:01:06]} 39. Kg2 {[%clk 0:00:05]}  a1=Q {[%clk 0:01:07]} 40. Rd3+ {[%clk 0:00:05]}  Ke4 {[%clk 0:01:07]} 41. Rd2 {[%clk 0:00:04]}  Rg1+ {[%clk 0:01:06]} 42. Kh3 {[%clk 0:00:05]}  Rh1+ {[%clk 0:01:06]} 43. Kg2 {[%clk 0:00:05]}  Qg1# {[%clk 0:01:05]} 0-1


[Site "https://www.chess.com"]

[Event "Titled Tuesday Blitz July 6 2021"]
[White "Tologon tegin, Semetei"]
[Black "Gabrielian, Artur"]
[WhiteFideId "13800574"]
[BlackFideId "4131002"]
[WhiteElo "2224"]
[BlackElo "2523"]
[Result "0-1"]
[Round "04"]
[TimeControl "180+1"]
[Date "2021.07.06"]
[WhiteClock "0:01:18"]
[BlackClock "0:02:03"]

1. d4 {[%clk 0:02:56]}  Nf6 {[%clk 0:02:59]} 2. c4 {[%clk 0:02:55]}  c5 {[%clk 0:02:58]} 3. d5 {[%clk 0:02:55]}  e6 {[%clk 0:02:58]} 4. Nc3 {[%clk 0:02:52]}  exd5 {[%clk 0:02:58]} 5. cxd5 {[%clk 0:02:53]}  d6 {[%clk 0:02:59]} 6. e4 {[%clk 0:02:54]}  g6 {[%clk 0:02:59]} 7. f4 {[%clk 0:02:53]}  Bg7 {[%clk 0:02:59]} 8. Bb5+ {[%clk 0:02:51]}  Nfd7 {[%clk 0:02:59]} 9. Bd3 {[%clk 0:02:42]}  O-O {[%clk 0:02:59]} 10. Nf3 {[%clk 0:02:42]}  Nf6 {[%clk 0:02:57]} 11. O-O {[%clk 0:02:42]}  Bg4 {[%clk 0:02:57]} 12. h3 {[%clk 0:02:41]}  Bxf3 {[%clk 0:02:57]} 13. Qxf3 {[%clk 0:02:41]}  Nbd7 {[%clk 0:02:57]} 14. Bd2 {[%clk 0:02:37]}  a6 {[%clk 0:02:58]} 15. a4 {[%clk 0:02:36]}  Rc8 {[%clk 0:02:58]} 16. Kh1 {[%clk 0:02:33]}  c4 {[%clk 0:02:58]} 17. Bc2 {[%clk 0:02:32]}  Re8 {[%clk 0:02:58]} 18. Rae1 {[%clk 0:02:28]}  Qb6 {[%clk 0:02:55]} 19. Bc1 {[%clk 0:02:28]}  Qc7 {[%clk 0:02:53]} 20. g4 {[%clk 0:02:22]}  h6 {[%clk 0:02:53]} 21. h4 {[%clk 0:02:15]}  h5 {[%clk 0:02:47]} 22. gxh5 {[%clk 0:02:10]}  Nxh5 {[%clk 0:02:47]} 23. f5 {[%clk 0:02:06]}  Ne5 {[%clk 0:02:46]} 24. Qg2 {[%clk 0:02:04]}  Qe7 {[%clk 0:02:18]} 25. Bg5 {[%clk 0:01:58]}  Bf6 {[%clk 0:02:13]} 26. Bd1 {[%clk 0:01:33]}  Bxg5 {[%clk 0:02:13]} 27. hxg5 {[%clk 0:01:31]}  Nd3 {[%clk 0:02:08]} 28. Bxh5 {[%clk 0:01:28]}  Nxe1 {[%clk 0:02:03]} 29. Rxe1 {[%clk 0:01:29]}  gxh5 {[%clk 0:02:04]} 30. g6 {[%clk 0:01:21]}  Qh4+ {[%clk 0:02:03]} 31. Kg1 {[%clk 0:01:17]}  Qxe1+ {[%clk 0:02:03]} 32. Kh2 {[%clk 0:01:18]}  Qh4+ {[%clk 0:02:03]} 0-1


[Site "https://www.chess.com"]

[Event "Titled Tuesday Blitz July 6 2021"]
[White "Vakhlamov, Igor L."]
[Black "Martinez Reyes, Pedro Ramon"]
[WhiteFideId "24126748"]
[BlackFideId "3901807"]
[WhiteElo "2416"]
[BlackElo "2398"]
[Result "0-1"]
[Round "04"]
[TimeControl "180+1"]
[Date "2021.07.06"]
[WhiteClock "0:00:05"]
[BlackClock "0:00:19"]

1. e4 {[%clk 0:03:00]}  c5 {[%clk 0:02:57]} 2. Nf3 {[%clk 0:03:00]}  Nc6 {[%clk 0:02:57]} 3. Nc3 {[%clk 0:02:59]}  g6 {[%clk 0:02:57]} 4. d4 {[%clk 0:02:57]}  cxd4 {[%clk 0:02:58]} 5. Nxd4 {[%clk 0:02:57]}  Bg7 {[%clk 0:02:59]} 6. Be3 {[%clk 0:02:58]}  Nf6 {[%clk 0:02:59]} 7. Bc4 {[%clk 0:02:57]}  O-O {[%clk 0:02:59]} 8. Bb3 {[%clk 0:02:57]}  d6 {[%clk 0:02:57]} 9. f3 {[%clk 0:02:56]}  Bd7 {[%clk 0:02:56]} 10. Qd2 {[%clk 0:02:55]}  a5 {[%clk 0:02:55]} 11. a4 {[%clk 0:02:44]}  Nb4 {[%clk 0:02:29]} 12. h4 {[%clk 0:02:42]}  h5 {[%clk 0:02:10]} 13. Bh6 {[%clk 0:02:35]}  Rc8 {[%clk 0:02:09]} 14. O-O-O {[%clk 0:02:29]}  Rc5 {[%clk 0:02:01]} 15. Bxg7 {[%clk 0:02:07]}  Kxg7 {[%clk 0:02:01]} 16. Kb1 {[%clk 0:02:03]}  Qb6 {[%clk 0:02:00]} 17. Ndb5 {[%clk 0:01:57]}  Rfc8 {[%clk 0:01:55]} 18. Rc1 {[%clk 0:01:51]}  Be6 {[%clk 0:01:38]} 19. Bxe6 {[%clk 0:01:45]}  fxe6 {[%clk 0:01:39]} 20. g4 {[%clk 0:01:18]}  Nc6 {[%clk 0:01:35]} 21. gxh5 {[%clk 0:01:11]}  Nxh5 {[%clk 0:01:31]} 22. Rhg1 {[%clk 0:01:11]}  Rf8 {[%clk 0:01:29]} 23. Rg2 {[%clk 0:00:53]}  Ne5 {[%clk 0:01:23]} 24. Rcg1 {[%clk 0:00:52]}  Rf6 {[%clk 0:01:23]} 25. Qe2 {[%clk 0:00:28]}  Nf4 {[%clk 0:01:18]} 26. Qd1 {[%clk 0:00:14]}  Nxg2 {[%clk 0:01:16]} 27. Rxg2 {[%clk 0:00:15]}  Nxf3 {[%clk 0:01:16]} 28. h5 {[%clk 0:00:14]}  Rxh5 {[%clk 0:01:16]} 29. Ka2 {[%clk 0:00:13]}  Qe3 {[%clk 0:01:14]} 30. Re2 {[%clk 0:00:11]}  Qc5 {[%clk 0:01:12]} 31. Rg2 {[%clk 0:00:09]}  Rg5 {[%clk 0:01:08]} 32. Re2 {[%clk 0:00:07]}  Nd4 {[%clk 0:01:08]} 33. Qxd4 {[%clk 0:00:05]}  Qb4 {[%clk 0:00:56]} 34. Qd3 {[%clk 0:00:05]}  Rf1 {[%clk 0:00:48]} 35. b3 {[%clk 0:00:04]}  Rgg1 {[%clk 0:00:47]} 36. e5 {[%clk 0:00:04]}  Ra1+ {[%clk 0:00:46]} 37. Kb2 {[%clk 0:00:04]}  d5 {[%clk 0:00:42]} 38. Rf2 {[%clk 0:00:04]}  Qg4 {[%clk 0:00:30]} 39. Qe3 {[%clk 0:00:04]}  Rae1 {[%clk 0:00:20]} 40. Qc5 {[%clk 0:00:04]}  Qg5 {[%clk 0:00:20]} 41. Ne2 {[%clk 0:00:05]}  Rxe2 {[%clk 0:00:19]} 42. Rxe2 {[%clk 0:00:06]}  Qc1+ {[%clk 0:00:19]} 43. Kc3 {[%clk 0:00:06]}  Rg3+ {[%clk 0:00:19]} 44. Kd4 {[%clk 0:00:05]}  Qf4+ {[%clk 0:00:19]} 45. Re4 {[%clk 0:00:05]}  Qxe4# {[%clk 0:00:19]} 0-1


[Site "https://www.chess.com"]